fUST/lending_fUST_20251006
["ID","MTS","AMOUNT","RATE_DAILY","PERIOD"]
[389510147,1759689047367,-505.59372834,0.00016712,2]
[389510148,1759689047376,-500.0,0.00016712,2]
[389510149,1759689047389,-802.42,0.00016712,2]
[389510150,1759689047399,-6687.93,0.00016712,2]
[389510151,1759689047408,-1079.59,0.00016712,2]
[389510152,1759689047417,-500.0,0.00016712,2]
[389510153,1759689047427,-500.0,0.00016712,2]
[389510154,1759689047438,-500.0,0.00016712,2]
[389510155,1759689047454,-500.0,0.00016712,2]
[389510156,1759689047464,-300.0,0.00016766,2]
[389510157,1759689047472,-300.0,0.00016766,2]
[389510158,1759689047482,-300.0,0.00016766,2]
[389510159,1759689047492,-300.0,0.00016766,2]
[389510160,1759689047501,-300.0,0.00016766,2]
[389510161,1759689047510,-300.0,0.00016766,2]
[389510162,1759689047519,-300.0,0.00016766,2]
[389510163,1759689047528,-300.0,0.00016766,2]
[389510164,1759689047537,-300.0,0.00016766,2]
[389510165,1759689047546,-300.0,0.00016766,2]
[389510166,1759689047555,-300.0,0.00016766,2]
[389510167,1759689047565,-300.0,0.00016766,2]
[389510168,1759689047574,-300.0,0.00016766,2]
[389510169,1759689047583,-300.0,0.00016766,2]
[389510170,1759689047592,-300.0,0.00016766,2]
[389510171,1759689047602,-600.0,0.00016766,2]
[389510172,1759689047611,-500.0,0.00016782,2]
[389510173,1759689047620,-162.380719,0.00016782,2]
[389510174,1759689047629,-251.54027301,0.00016782,2]
[389510175,1759689047637,-500.0,0.00016782,2]
[389510176,1759689047646,-500.0,0.00016782,2]
[389510177,1759689047654,-605.36418013,0.00016782,2]
[389510178,1759689047663,-162.380719,0.00016782,2]
[389510179,1759689047672,-151.0,0.00016782,2]
[389510180,1759689047681,-151.0,0.00016782,2]
[389510181,1759689047689,-18603.8837,0.00016782,2]
[389510182,1759689047698,-250.0,0.00016782,2]
[389510183,1759689047707,-250.0,0.00016782,2]
[389510184,1759689047715,-250.0,0.00016782,2]
[389510185,1759689047724,-2030.296672,0.00016782,2]
[389510186,1759689047733,-250.0,0.00016782,2]
[389510187,1759689047742,-250.0,0.00016782,2]
[389510188,1759689047750,-500.0,0.00016782,2]
[389510189,1759689047759,-250.0,0.00016782,2]
[389510190,1759689047768,-324.0,0.00016827,2]
[389510191,1759689047777,-157.15423862,0.00016837,2]
[389510192,1759689047786,-821.70402823,0.00016886,2]
[389510193,1759689047795,-508.0379864,0.00016973,2]
[389510194,1759689047803,-500.0,0.00016973,2]
[389510195,1759689047812,-500.0,0.00016973,2]
[389510196,1759689047821,-341.40647495,0.00016973,2]
[389510197,1759689047831,-500.0,0.00016973,2]
[389510198,1759689047840,-374.79613424,0.00016973,2]
[389510199,1759689047851,-500.0,0.00016973,2]
[389510200,1759689047860,-500.0,0.00016973,2]
[389510201,1759689047869,-500.0,0.00016973,2]
[389510202,1759689047878,-500.0,0.00016973,2]
[389510203,1759689047887,-500.0,0.00016973,2]
[389510204,1759689047896,-500.0,0.00016973,2]
[389510205,1759689047905,-500.0,0.00016973,2]
[389510206,1759689047914,-500.0,0.00016973,2]
[389510207,1759689047924,-500.0,0.00016973,2]
[389510208,1759689047933,-500.0,0.00016973,2]
[389510209,1759689047941,-500.0,0.00016973,2]
[389510210,1759689047950,-506.93223394,0.00016973,2]
[389510211,1759689047959,-500.0,0.00016973,2]
[389510212,1759689047969,-500.0,0.00016973,2]
[389510213,1759689047978,-500.0,0.00016973,2]
[389510214,1759689047987,-500.0,0.00016973,2]
[389510215,1759689047996,-500.0,0.00016973,2]
[389510216,1759689048006,-500.0,0.00016973,2]
[389510217,1759689048015,-500.0,0.00016986,2]
[389510218,1759689048023,-441.8798321,0.00016986,2]
[389510219,1759689048033,-151.0,0.00016986,2]
[389510220,1759689048042,-151.0,0.00016986,2]
[389510221,1759689048051,-500.0,0.00016986,2]
[389510222,1759689048059,-151.0,0.00016986,2]
[389510223,1759689048068,-500.0,0.00016986,2]
[389510224,1759689048077,-294.54371362,0.00016986,2]
[389510225,1759689048086,-500.0,0.00016986,2]
[389510226,1759689048095,-500.0,0.00016986,2]
[389510227,1759689048104,-500.0,0.00016986,2]
[389510228,1759689048113,-1732.0,0.00016986,2]
[389510229,1759689048121,-500.0,0.00016986,2]
[389510230,1759689048130,-500.0,0.00016986,2]
[389510231,1759689048140,-151.0,0.00016986,2]
[389510232,1759689048150,-500.0,0.00016986,2]
[389510233,1759689048159,-151.0,0.00016986,2]
[389510234,1759689048168,-500.0,0.00016986,2]
[389510235,1759689048177,-500.0,0.00016986,2]
[389510236,1759689048187,-206.94331665,0.00016986,2]
[389510237,1759689048196,-500.0,0.00016986,2]
[389510238,1759689048205,-500.0,0.00016986,2]
[389510239,1759689048214,-295.42865613,0.00016986,2]
[389510240,1759689048223,-500.0,0.00016986,2]
[389510241,1759689048234,-1293.03,0.00016986,2]
[389510242,1759689048245,-500.0,0.00016986,2]
[389510243,1759689048255,-500.0,0.00016986,2]
[389510244,1759689048265,-500.0,0.00016986,2]
[389510245,1759689048275,-500.0,0.00016986,2]
[389510246,1759689048284,-500.0,0.00016986,2]
[389510247,1759689048293,-500.0,0.00016986,2]
[389510248,1759689048302,-500.0,0.00016986,2]
[389510249,1759689048311,-500.0,0.00016986,2]
[389510250,1759689048320,-500.0,0.00016986,2]
[389510251,1759689048329,-500.0,0.00016986,2]
[389510252,1759689048342,-500.0,0.00016986,2]
[389510253,1759689048351,-500.0,0.00016986,2]
[389510254,1759689048361,-500.0,0.00016986,2]
[389510255,1759689048370,-500.0,0.00016986,2]
[389510256,1759689048379,-500.0,0.00016986,2]
[389510257,1759689048388,-500.0,0.00016986,2]
[389510258,1759689048397,-494.75377499,0.00016986,2]
[389510259,1759689048406,-500.0,0.00016986,2]
[389510260,1759689048415,-555.18,0.00016986,2]
[389510261,1759689048424,-500.0,0.00016986,2]
[389510262,1759689048433,-500.0,0.00016986,2]
[389510263,1759689048442,-500.0,0.00016986,2]
[389510264,1759689048451,-500.0,0.00016986,2]
[389510265,1759689048460,-500.0,0.00016986,2]
[389510266,1759689048469,-500.0,0.00016986,2]
[389510267,1759689048478,-500.0,0.00016986,2]
[389510268,1759689048487,-500.0,0.00016986,2]
[389510269,1759689048495,-500.0,0.00016986,2]
[389510270,1759689048504,-500.0,0.00016986,2]
[389510271,1759689048513,-500.0,0.00016986,2]
[389510272,1759689048522,-500.0,0.00016986,2]
[389510273,1759689048530,-262.27717494,0.00016986,2]
[389510274,1759689048539,-500.0,0.00016986,2]
[389510275,1759689048548,-500.0,0.00016986,2]
[389510276,1759689048556,-500.0,0.00016986,2]
[389510277,1759689048565,-500.0,0.00016986,2]
[389510278,1759689048574,-595.33,0.00016986,2]
[389510279,1759689048583,-500.0,0.00016986,2]
[389510280,1759689048592,-500.0,0.00016986,2]
[389510281,1759689048600,-500.0,0.00016986,2]
[389510282,1759689048610,-500.0,0.00016986,2]
[389510283,1759689048618,-1376.15,0.00016986,2]
[389510284,1759689048627,-642.37,0.00016986,2]
[389510285,1759689048636,-956.68,0.00016986,2]
[389510286,1759689048644,-500.0,0.00016986,2]
[389510287,1759689048653,-500.0,0.00016986,2]
[389510288,1759689048662,-500.0,0.00016986,2]
[389510289,1759689048672,-568.39,0.00016986,2]
[389510290,1759689048681,-500.0,0.00016986,2]
[389510291,1759689048689,-500.0,0.00016986,2]
[389510292,1759689048699,-698.89,0.00016986,2]
[389510293,1759689048709,-500.0,0.00016986,2]
[389510294,1759689048720,-500.0,0.00016986,2]
[389510295,1759689048729,-500.0,0.00016986,2]
[389510296,1759689048738,-2265.52,0.00016986,2]
[389510297,1759689048747,-643.01,0.00016986,2]
[389510298,1759689048756,-207.29082783,0.00016986,2]
[389510299,1759689048765,-500.0,0.00016986,2]
[389510300,1759689048774,-500.0,0.00016986,2]
[389510301,1759689048783,-500.0,0.00016986,2]
[389510302,1759689048791,-500.0,0.00016986,2]
[389510303,1759689048800,-500.0,0.00016986,2]
[389510304,1759689048810,-500.0,0.00016986,2]
[389510305,1759689048819,-500.0,0.00016986,2]
[389510306,1759689048828,-500.0,0.00016986,2]
[389510307,1759689048837,-500.0,0.00016986,2]
[389510308,1759689048846,-1393.99,0.00016986,2]
[389510309,1759689048855,-500.05,0.00016986,2]
[389510310,1759689048865,-1317.15,0.00016986,2]
[389510311,1759689048874,-480.0,0.00016986,2]
[389510312,1759689048883,-500.0,0.00016986,2]
[389510313,1759689048893,-763.35,0.00016986,2]
[389510314,1759689048903,-500.0,0.00016986,2]
[389510315,1759689048912,-500.0,0.00016986,2]
[389510316,1759689048922,-546.92,0.00016986,2]
[389510317,1759689048932,-500.0,0.00016986,2]
[389510318,1759689048942,-675.29,0.00016986,2]
[389510319,1759689048951,-500.0,0.00016986,2]
[389510320,1759689048962,-500.0,0.00016986,2]
[389510321,1759689048971,-852.17,0.00016986,2]
[389510322,1759689048980,-500.0,0.00016986,2]
[389510323,1759689048989,-2432.63,0.00016986,2]
[389510324,1759689048998,-500.0,0.00016986,2]
[389510325,1759689049007,-809.72,0.00016986,2]
[389510326,1759689049017,-1268.73,0.00016986,2]
[389510327,1759689049026,-826.51,0.00016986,2]
[389510328,1759689049037,-824.29,0.00016986,2]
[389510329,1759689049047,-974.64,0.00016986,2]
[389510330,1759689049058,-500.0,0.00016986,2]
[389510331,1759689049068,-983.67,0.00016986,2]
[389510332,1759689049077,-500.0,0.00016986,2]
[389510333,1759689049086,-500.0,0.00016986,2]
[389510334,1759689049096,-500.0,0.00016986,2]
[389510335,1759689049105,-533.34,0.00016986,2]
[389510336,1759689049115,-500.0,0.00016986,2]
[389510337,1759689049124,-500.0,0.00016986,2]
[389510338,1759689049134,-500.0,0.00016986,2]
[389510339,1759689049143,-709.8,0.00016986,2]
[389510340,1759689049152,-500.0,0.00016986,2]
[389510341,1759689049163,-500.0,0.00016986,2]
[389510342,1759689049173,-1377.69,0.00016986,2]
[389510343,1759689049182,-500.0,0.00016986,2]
[389510344,1759689049192,-500.0,0.00016986,2]
[389510345,1759689049201,-500.0,0.00016986,2]
[389510346,1759689049211,-500.0,0.00016986,2]
[389510347,1759689049220,-500.0,0.00016986,2]
[389510348,1759689049230,-500.0,0.00016986,2]
[389510349,1759689049239,-500.0,0.00016986,2]
[389510350,1759689049248,-500.0,0.00016986,2]
[389510351,1759689049258,-500.0,0.00016986,2]
[389510352,1759689049268,-500.78128064,0.00016986,2]
[389510353,1759689049278,-500.0,0.00016986,2]
[389510354,1759689049287,-500.0,0.00016986,2]
[389510355,1759689049296,-500.0,0.00016986,2]
[389510356,1759689049306,-500.0,0.00016986,2]
[389510357,1759689049317,-581.49,0.00016986,2]
[389510358,1759689049327,-542.65,0.00016986,2]
[389510359,1759689049340,-151.0,0.00016986,2]
[389510360,1759689049349,-500.0,0.00016986,2]
[389510361,1759689049359,-262.148754,0.00016986,2]
[389510362,1759689049369,-500.0,0.00016986,2]
[389510363,1759689049379,-503.09289378,0.00016986,2]
[389510364,1759689049388,-151.0,0.00016986,2]
[389510365,1759689049397,-2208.57,0.00016986,2]
[389510366,1759689049406,-151.0,0.00016986,2]
[389510367,1759689049415,-500.0,0.00016986,2]
[389510368,1759689049425,-500.0,0.00016986,2]
[389510369,1759689049434,-543.1,0.00016986,2]
[389510370,1759689049443,-500.0,0.00016986,2]
[389510371,1759689049453,-151.0,0.00016986,2]
[389510372,1759689049462,-500.0,0.00016986,2]
[389510373,1759689049471,-500.0,0.00016986,2]
[389510374,1759689049481,-500.0,0.00016986,2]
[389510375,1759689049490,-832.87,0.00016986,2]
[389510376,1759689049499,-1123.52,0.00016986,2]
[389510377,1759689049509,-585.0,0.00016986,2]
[389510378,1759689049519,-778.06,0.00016986,2]
[389510379,1759689049529,-151.0,0.00016986,2]
[389510380,1759689049538,-500.0,0.00016986,2]
[389510381,1759689049547,-500.0,0.00016986,2]
[389510382,1759689049556,-539.79,0.00016986,2]
[389510383,1759689049565,-151.0,0.00016986,2]
[389510384,1759689049575,-500.0,0.00016986,2]
[389510385,1759689049584,-585.63,0.00016986,2]
[389510386,1759689049593,-151.0,0.00016986,2]
[389510387,1759689049602,-500.0,0.00016986,2]
[389510388,1759689049612,-695.12,0.00016986,2]
[389510389,1759689049621,-409.05398434,0.00016986,2]
[389510390,1759689049631,-879.04,0.00016986,2]
[389510391,1759689049640,-500.0,0.00016986,2]
[389510392,1759689049649,-151.0,0.00016986,2]
[389510393,1759689049659,-202.20094709,0.00016986,2]
[389510394,1759689049668,-944.64,0.00016986,2]
[389510395,1759689049677,-1951.78,0.00016986,2]
[389510396,1759689049686,-500.0,0.00016986,2]
[389510397,1759689049695,-500.0,0.00016986,2]
[389510398,1759689049705,-1643.6,0.00016986,2]
[389510399,1759689049714,-151.0,0.00016986,2]
[389510400,1759689049723,-500.0,0.00016986,2]
[389510401,1759689049732,-500.0,0.00016986,2]
[389510402,1759689049741,-500.0,0.00016986,2]
[389510403,1759689049751,-151.0,0.00016986,2]
[389510404,1759689049760,-500.0,0.00016986,2]
[389510405,1759689049770,-151.0,0.00016986,2]
[389510406,1759689049779,-500.0,0.00016986,2]
[389510407,1759689049789,-500.0,0.00016986,2]
[389510408,1759689049798,-500.0,0.00016986,2]
[389510409,1759689049808,-1072.17,0.00016986,2]
[389510410,1759689049818,-500.0,0.00016986,2]
[389510411,1759689049827,-710.73,0.00016986,2]
[389510412,1759689049836,-500.0,0.00016986,2]
[389510413,1759689049845,-539.36,0.00016986,2]
[389510414,1759689049855,-151.0,0.00016986,2]
[389510415,1759689049864,-525.38,0.00016986,2]
[389510416,1759689049873,-151.0,0.00016986,2]
[389510417,1759689049883,-1398.76,0.00016986,2]
[389510418,1759689049893,-1035.99,0.00016986,2]
[389510419,1759689049905,-151.0,0.00016986,2]
[389510420,1759689049916,-500.0,0.00016986,2]
[389510421,1759689049925,-500.0,0.00016986,2]
[389510422,1759689049934,-3042.18,0.00016986,2]
[389510423,1759689049943,-2002.11,0.00016986,2]
[389510424,1759689049952,-500.0,0.00016986,2]
[389510425,1759689049961,-500.0,0.00016986,2]
[389510426,1759689049971,-3386.7,0.00016986,2]
[389510427,1759689049981,-500.0,0.00016986,2]
[389510428,1759689049990,-2103.1,0.00016986,2]
[389510429,1759689049999,-4820.21,0.00016986,2]
[389510430,1759689050009,-151.659466,0.00016986,2]
[389510431,1759689050018,-500.0,0.00016986,2]
[389510432,1759689050027,-6284.43,0.00016986,2]
[389510433,1759689050037,-500.0,0.00016986,2]
[389510434,1759689050047,-973.67,0.00016986,2]
[389510435,1759689050056,-729.48,0.00016986,2]
[389510436,1759689050065,-500.0,0.00016986,2]
[389510437,1759689050075,-500.0,0.00016986,2]
[389510438,1759689050084,-1292.33,0.00016986,2]
[389510439,1759689050094,-151.0,0.00016986,2]
[389510440,1759689050103,-500.0,0.00016986,2]
[389510441,1759689050113,-1212.35,0.00016986,2]
[389510442,1759689050122,-151.0,0.00016986,2]
[389510443,1759689050131,-500.0,0.00016986,2]
[389510444,1759689050141,-151.0,0.00016986,2]
[389510445,1759689050150,-151.0,0.00016986,2]
[389510446,1759689050160,-536.91,0.00016986,2]
[389510447,1759689050169,-631.87,0.00016986,2]
[389510448,1759689050178,-500.0,0.00016986,2]
[389510449,1759689050188,-580.24,0.00016986,2]
[389510450,1759689050197,-500.0,0.00016986,2]
[389510451,1759689050207,-635.4,0.00016986,2]
[389510452,1759689050216,-500.0,0.00016986,2]
[389510453,1759689050226,-1306.97,0.00016986,2]
[389510454,1759689050236,-3083.19,0.00016986,2]
[389510455,1759689050245,-500.0,0.00016986,2]
[389510456,1759689050254,-1026.88,0.00016986,2]
[389510457,1759689050265,-500.0,0.00016986,2]
[389510458,1759689050274,-2194.45,0.00016986,2]
[389510459,1759689050284,-1267.61,0.00016986,2]
[389510460,1759689050293,-500.0,0.00016986,2]
[389510461,1759689050302,-500.0,0.00016986,2]
[389510462,1759689050311,-2062.38,0.00016986,2]
[389510463,1759689050321,-500.0,0.00016986,2]
[389510464,1759689050331,-500.0,0.00016986,2]
[389510465,1759689050344,-562.16,0.00016986,2]
[389510466,1759689050354,-500.0,0.00016986,2]
[389510467,1759689050363,-4433.26,0.00016986,2]
[389510468,1759689050373,-3569.42,0.00016986,2]
[389510469,1759689050383,-1305.26,0.00016986,2]
[389510470,1759689050392,-4629.9,0.00016986,2]
[389510471,1759689050401,-500.0,0.00016986,2]
[389510472,1759689050411,-550.36,0.00016986,2]
[389510473,1759689050420,-1068.91,0.00016986,2]
[389510474,1759689050430,-500.0,0.00016986,2]
[389510475,1759689050439,-634.62,0.00016986,2]
[389510476,1759689050449,-151.0,0.00016986,2]
[389510477,1759689050459,-500.0,0.00016986,2]
[389510478,1759689050468,-1079.72,0.00016986,2]
[389510479,1759689050477,-1008.94,0.00016986,2]
[389510480,1759689050486,-740.14,0.00016986,2]
[389510481,1759689050496,-717.46,0.00016986,2]
[389510482,1759689050505,-1365.79,0.00016986,2]
[389510483,1759689050514,-151.0,0.00016986,2]
[389510484,1759689050524,-151.0,0.00016986,2]
[389510485,1759689050533,-3616.59,0.00016986,2]
[389510486,1759689050542,-848.78,0.00016986,2]
[389510487,1759689050552,-485.09980661,0.00016986,2]
[389510488,1759689050561,-500.0,0.00016986,2]
[389510489,1759689050571,-3922.43,0.00016986,2]
[389510490,1759689050580,-2838.25,0.00016986,2]
[389510491,1759689050590,-151.0,0.00016986,2]
[389510492,1759689050599,-151.0,0.00016986,2]
[389510493,1759689050609,-923.11,0.00016986,2]
[389510494,1759689050618,-500.0,0.00016986,2]
[389510495,1759689050627,-500.0,0.00016986,2]
[389510496,1759689050636,-2055.86,0.00016986,2]
[389510497,1759689050646,-500.0,0.00016986,2]
[389510498,1759689050655,-500.0,0.00016986,2]
[389510499,1759689050664,-609.62,0.00016986,2]
[389510500,1759689050673,-1609.34,0.00016986,2]
[389510501,1759689050682,-423.01133758,0.00016986,2]
[389510502,1759689050692,-151.0,0.00016986,2]
[389510503,1759689050701,-1684.32,0.00016986,2]
[389510504,1759689050711,-1707.15,0.00016986,2]
[389510505,1759689050720,-500.0,0.00016986,2]
[389510506,1759689050729,-500.0,0.00016986,2]
[389510507,1759689050738,-983.2,0.00016986,2]
[389510508,1759689050749,-2659.2,0.00016986,2]
[389510509,1759689050758,-621.66,0.00016986,2]
[389510510,1759689050767,-639.69,0.00016986,2]
[389510511,1759689050776,-500.0,0.00016986,2]
[389510512,1759689050786,-151.0,0.00016986,2]
[389510513,1759689050795,-4527.15,0.00016986,2]
[389510514,1759689050804,-151.0,0.00016986,2]
[389510515,1759689050813,-500.0,0.00016986,2]
[389510516,1759689050823,-500.0,0.00016986,2]
[389510517,1759689050833,-762.6,0.00016986,2]
[389510518,1759689050842,-500.0,0.00016986,2]
[389510519,1759689050851,-151.0,0.00016986,2]
[389510520,1759689050861,-500.0,0.00016986,2]
[389510521,1759689050871,-500.0,0.00016986,2]
[389510522,1759689050880,-289.31838181,0.00016986,2]
[389510523,1759689050890,-675.38,0.00016986,2]
[389510524,1759689050899,-500.0,0.00016986,2]
[389510525,1759689050909,-1616.68,0.00016986,2]
[389510526,1759689050918,-589.48245182,0.00016986,2]
[389510527,1759689050928,-500.0,0.00016986,2]
[389510528,1759689050937,-500.0,0.00016986,2]
[389510529,1759689050946,-155.350315,0.00016986,2]
[389510530,1759689050956,-151.0,0.00016986,2]
[389510531,1759689050965,-2024.41,0.00016986,2]
[389510532,1759689050975,-500.0,0.00016986,2]
[389510533,1759689050984,-523.76,0.00016986,2]
[389510534,1759689051149,-500.0,0.00016986,2]
[389510535,1759689051159,-721.64,0.00016986,2]
[389510536,1759689051169,-500.0,0.00016986,2]
[389510537,1759689051179,-511.05,0.00016986,2]
[389510538,1759689051188,-891.94,0.00016986,2]
[389510539,1759689051198,-1736.69,0.00016986,2]
[389510540,1759689051207,-500.0,0.00016986,2]
[389510541,1759689051216,-151.0,0.00016986,2]
[389510542,1759689051226,-500.0,0.00016986,2]
[389510543,1759689051235,-151.0,0.00016986,2]
[389510544,1759689051245,-500.0,0.00016986,2]
[389510545,1759689051255,-681.25,0.00016986,2]
[389510546,1759689051264,-772.36,0.00016986,2]
[389510547,1759689051274,-2634.38,0.00016986,2]
[389510548,1759689051283,-6557.05,0.00016986,2]
[389510549,1759689051293,-1112.79,0.00016986,2]
[389510550,1759689051302,-2126.8,0.00016986,2]
[389510551,1759689051312,-500.0,0.00016986,2]
[389510552,1759689051321,-500.0,0.00016986,2]
[389510553,1759689051330,-500.0,0.00016986,2]
[389510554,1759689051342,-2286.45,0.00016986,2]
[389510555,1759689051351,-2130.5,0.00016986,2]
[389510556,1759689051361,-500.0,0.00016986,2]
[389510557,1759689051370,-802.42,0.00016986,2]
[389510558,1759689051379,-151.0,0.00016986,2]
[389510559,1759689051388,-6687.93,0.00016986,2]
[389510560,1759689051398,-1079.59,0.00016986,2]
[389510561,1759689051407,-500.0,0.00016986,2]
[389510562,1759689051417,-500.0,0.00016986,2]
[389510563,1759689051426,-500.0,0.00016986,2]
[389510564,1759689051435,-92020.99886271,0.0001699,2]
[389510565,1759689051444,-110027.93956836,0.00017,2]
[389510566,1759689051454,-151.0,0.00017,2]
[389510567,1759689051463,-151.0,0.00017,2]
[389510568,1759689051472,-151.0,0.00017,2]
[389510569,1759689051481,-821.70402823,0.0001716,2]
[389510570,1759689051490,-500.0,0.00017182,2]
[389510571,1759689051499,-500.0,0.00017182,2]
[389510572,1759689051508,-500.0,0.00017182,2]
[389510573,1759689051517,-500.0,0.00017182,2]
[389510574,1759689051526,-500.0,0.00017182,2]
[389510575,1759689051536,-500.0,0.00017182,2]
[389510576,1759689051545,-500.0,0.00017182,2]
[389510577,1759689051554,-279.50447108,0.00017182,2]
[389510578,1759689051563,-500.0,0.00017182,2]
[389510579,1759689051572,-500.0,0.00017182,2]
[389510580,1759689051581,-348.0,0.00017227,2]
[389510581,1759689051590,-500.0,0.0001726,2]
[389510582,1759689051599,-500.0,0.0001726,2]
[389510583,1759689051609,-151.0,0.0001726,2]
[389510584,1759689051618,-198.0,0.0001726,2]
[389510585,1759689051627,-500.0,0.0001726,2]
[389510586,1759689051635,-500.0,0.0001726,2]
[389510587,1759689051644,-500.0,0.0001726,2]
[389510588,1759689051653,-500.0,0.0001726,2]
[389510589,1759689051662,-1732.0,0.0001726,2]
[389510590,1759689051670,-500.0,0.0001726,2]
[389510591,1759689051679,-500.0,0.0001726,2]
[389510592,1759689051689,-245.0,0.0001726,2]
[389510593,1759689051698,-500.0,0.0001726,2]
[389510594,1759689051707,-227.41664572,0.0001726,2]
[389510595,1759689051716,-162.51351402,0.0001726,2]
[389510596,1759689051725,-346.67109539,0.0001726,2]
[389510597,1759689051734,-193.54318782,0.0001726,2]
[389510598,1759689051743,-500.0,0.0001726,2]
[389510599,1759689051753,-500.0,0.0001726,2]
[389510600,1759689051762,-1293.03,0.0001726,2]
[389510601,1759689051771,-500.0,0.0001726,2]
[389510602,1759689051780,-500.0,0.0001726,2]
[389510603,1759689051789,-373.39128123,0.0001726,2]
[389510604,1759689051798,-500.0,0.0001726,2]
[389510605,1759689051807,-500.0,0.0001726,2]
[389510606,1759689051816,-500.0,0.0001726,2]
[389510607,1759689051825,-481.08363986,0.0001726,2]
[389510608,1759689051835,-500.0,0.0001726,2]
[389510609,1759689051844,-500.0,0.0001726,2]
[389510610,1759689051852,-500.0,0.0001726,2]
[389510611,1759689051862,-500.0,0.0001726,2]
[389510612,1759689051871,-500.0,0.0001726,2]
[389510613,1759689051881,-500.0,0.0001726,2]
[389510614,1759689051889,-500.0,0.0001726,2]
[389510615,1759689051899,-500.0,0.0001726,2]
[389510616,1759689051908,-555.18,0.0001726,2]
[389510617,1759689051917,-500.0,0.0001726,2]
[389510618,1759689051926,-174.36511048,0.0001726,2]
[389510619,1759689051935,-500.0,0.0001726,2]
[389510620,1759689051944,-500.0,0.0001726,2]
[389510621,1759689051953,-500.0,0.0001726,2]
[389510622,1759689051962,-500.0,0.0001726,2]
[389510623,1759689051972,-500.0,0.0001726,2]
[389510624,1759689051981,-500.0,0.0001726,2]
[389510625,1759689051990,-500.0,0.0001726,2]
[389510626,1759689051999,-161.898412,0.0001726,2]
[389510627,1759689052008,-500.0,0.0001726,2]
[389510628,1759689052017,-500.0,0.0001726,2]
[389510629,1759689052027,-500.0,0.0001726,2]
[389510630,1759689052036,-500.0,0.0001726,2]
[389510631,1759689052045,-500.0,0.0001726,2]
[389510632,1759689052054,-500.0,0.0001726,2]
[389510633,1759689052063,-595.33,0.0001726,2]
[389510634,1759689052072,-500.0,0.0001726,2]
[389510635,1759689052080,-151.0,0.0001726,2]
[389510636,1759689052089,-500.0,0.0001726,2]
[389510637,1759689052098,-151.0,0.0001726,2]
[389510638,1759689052107,-500.0,0.0001726,2]
[389510639,1759689052116,-500.0,0.0001726,2]
[389510640,1759689052125,-1376.15,0.0001726,2]
[389510641,1759689052134,-642.37,0.0001726,2]
[389510642,1759689052143,-956.68,0.0001726,2]
[389510643,1759689052152,-500.0,0.0001726,2]
[389510644,1759689052161,-500.0,0.0001726,2]
[389510645,1759689052170,-151.0,0.0001726,2]
[389510646,1759689052179,-500.0,0.0001726,2]